bitfinex-derivatives/quotes_ETHF0:USTF0_20250209
["timestamp","ask_amount","ask_price","bid_price","bid_amount"]
[1739138691717,0.00392813,2550.0,2549.0,3.21369217]
[1739138692017,4.22415039,2549.9,2549.0,3.21369217]
[1739138692212,3.2078,2549.8,2549.0,3.21369217]
[1739138692411,7.43195039,2549.9,2549.0,3.21369217]
[1739138692616,3.2078,2549.6,2549.0,0.00589217]
[1739138692823,3.2078,2549.4,2549.0,0.00589217]
[1739138693113,4.44770596,2549.5,2549.0,0.00589217]
[1739138693317,3.2078,2549.9,2549.0,0.00589217]
[1739138693518,3.2078,2549.6,2549.0,0.00589217]
[1739138693718,4.33113235,2549.4,2549.0,0.00589217]
[1739138694021,4.2197908,2549.5,2549.0,0.00589217]
[1739138694219,3.2078,2549.3,2549.0,0.00589217]
[1739138694514,4.33113235,2549.2,2548.2,3.2078]
[1739138694722,13.28403235,2549.2,2547.8,3.2078]
[1739138694923,13.28403235,2549.2,2547.1,7.76256239]
[1739138694924,3.2078,2548.6,2547.5,3.2078]
[1739138695124,3.2078,2547.9,2547.5,3.2078]
[1739138695420,3.2078,2547.6,2546.9,3.2078]
[1739138695616,4.20646424,2547.8,2546.9,3.2078]
[1739138695820,4.2442621,2547.5,2546.9,3.2078]
[1739138696019,0.00589217,2547.5,2547.0,0.00589217]
[1739138696220,0.00589217,2547.5,2547.2,3.2078]
[1739138696418,4.2442621,2547.4,2547.0,0.00589217]
[1739138697719,0.00589217,2547.5,2547.3,3.2078]
[1739138698522,0.00589217,2547.5,2547.0,0.00589217]
[1739138698523,4.18276934,2547.4,2547.0,0.00589217]
[1739138698915,3.2078,2547.3,2547.0,0.00589217]
[1739138699224,0.00589217,2547.5,2547.0,0.00589217]
[1739138699419,3.2078,2547.2,2547.0,0.00589217]
[1739138699626,4.12724435,2547.2,2547.0,0.00589217]
[1739138699818,3.21369217,2547.5,2547.0,0.00589217]
[1739138700124,4.2426919,2547.1,2547.0,0.00589217]
[1739138700424,0.00589217,2547.5,2547.0,0.00589217]
[1739138700723,7.35281883,2547.1,2546.1,3.2078]
[1739138701117,3.2078,2547.1,2546.1,3.2078]
[1739138701320,4.14501883,2547.0,2546.4,3.2078]
[1739138701616,3.2078,2547.1,2546.4,3.2078]
[1739138701818,3.2078,2547.1,2546.1,3.2078]
[1739138701819,4.30313302,2547.0,2546.1,3.2078]
[1739138702023,4.30313302,2547.0,2546.5,0.00589217]
[1739138702520,4.30313302,2547.0,2546.7,3.2078]
[1739138702719,0.00589217,2547.5,2546.7,3.2078]
[1739138702917,0.00589217,2547.5,2547.0,3.2078]
[1739138703120,0.00589217,2547.5,2547.3,3.2078]
[1739138703727,4.25940529,2547.4,2546.6,3.2078]
[1739138703923,3.2078,2547.1,2546.5,0.00589217]
[1739138704120,4.25940529,2547.4,2546.5,0.00589217]
[1739138704324,4.25940529,2547.0,2546.5,3.21369217]
[1739138704521,3.2078,2546.9,2546.5,0.00589217]
[1739138704928,4.3333926,2546.8,2546.5,0.00589217]
[1739138705219,7.5411926,2547.3,2546.5,3.99894217]
[1739138705422,4.3333926,2547.3,2546.7,0.78519]
[1739138705619,0.04498642,2547.4,2546.8,3.2078]
[1739138705825,0.00589217,2547.5,2546.6,0.78522]
[1739138706027,4.32084458,2547.3,2546.9,3.2078]
[1739138706224,4.32084458,2547.3,2546.5,0.00589217]
[1739138706225,4.32084458,2547.4,2547.2,3.2078]
[1739138706423,0.00589217,2547.5,2547.2,9.2078]
[1739138706623,0.04498642,2548.1,2547.2,3.2078]
[1739138706829,3.2078,2548.2,2547.0,3.2078]
[1739138707130,3.2078,2547.6,2546.6,7.7021]
[1739138707324,3.036,2547.8,2546.6,7.7021]
[1739138707520,3.2078,2547.1,2546.6,3.2078]
[1739138707720,3.2078,2546.8,2546.5,0.00589217]
[1739138708131,3.2078,2546.6,2546.5,0.00589217]
[1739138708427,9.0331965,2547.0,2545.8,3.2078]
[1739138708624,4.2099111,2546.6,2545.8,3.2078]
[1739138708824,3.2078,2546.5,2545.8,3.2078]
[1739138709019,3.2078,2546.2,2545.8,3.2078]
[1739138709216,4.5476551,2546.4,2545.8,3.2078]
[1739138709422,5.79378642,2547.0,2545.8,3.2078]
[1739138709619,3.2078,2546.8,2546.1,3.2078]
[1739138709818,3.2078,2546.8,2545.9,0.78544]
[1739138709819,3.2078,2547.1,2546.4,3.2078]
[1739138710019,3.2078,2547.3,2546.4,3.2078]
[1739138710232,4.17259219,2547.3,2546.7,3.2078]
[1739138710524,4.17259219,2547.4,2546.6,3.2078]
[1739138710722,0.00589217,2547.5,2546.6,3.2078]
[1739138710921,7.72341592,2547.4,2546.3,3.2078]
[1739138711120,7.72341592,2547.4,2545.6,3.036]
[1739138711121,3.2078,2547.0,2545.6,3.2078]
[1739138711427,3.2078,2546.2,2545.7,0.00589217]
[1739138711928,3.79340215,2546.1,2545.7,0.00589217]
[1739138712125,4.03887524,2546.1,2545.7,0.00589217]
[1739138712323,0.24547309,2546.1,2545.7,0.00589217]
[1739138712629,4.08769562,2546.0,2545.7,0.00589217]
[1739138712824,4.08769562,2546.0,2545.9,3.2078]
[1739138713027,0.00589217,2546.2,2545.9,3.2078]
[1739138713730,0.00589217,2546.2,2545.9,9.2078]
[1739138713926,0.04498642,2547.3,2546.0,0.78542]
[1739138714228,3.2078,2546.7,2546.0,3.2078]
[1739138714426,3.2078,2547.1,2546.0,3.2078]
[1739138714730,4.08530828,2546.6,2546.0,3.2078]
[1739138714922,4.08530828,2546.6,2545.7,0.00589217]
[1739138714923,4.08530828,2546.6,2545.7,3.21369217]
[1739138715125,3.2078,2546.4,2545.7,0.00589217]
[1739138715425,4.44640948,2546.3,2545.7,0.00589217]
[1739138715828,3.2078,2546.3,2545.7,0.00589217]
[1739138716232,3.20174115,2545.9,2545.7,0.00589217]
[1739138716632,4.20591979,2545.8,2545.7,0.00589217]
[1739138717730,10.20591979,2545.8,2545.3,3.2078]
[1739138717929,4.20591979,2545.8,2545.3,3.2078]
[1739138718234,0.24556373,2545.7,2545.3,3.2078]
[1739138718623,4.45968897,2545.6,2545.3,3.2078]
[1739138719227,4.20860408,2545.8,2545.3,3.2078]
[1739138719427,3.029,2546.0,2545.3,3.2078]
[1739138719735,4.20860408,2545.9,2545.3,3.2078]
[1739138719934,0.78548,2545.9,2545.3,3.2078]
[1739138720228,3.2078,2545.5,2545.2,0.00589217]
[1739138720727,4.08571665,2545.4,2545.3,3.2078]
[1739138720921,3.2078,2545.6,2545.2,0.00589217]
[1739138721126,7.92192594,2545.3,2544.0,3.2078]
[1739138721333,3.009,2545.2,2544.4,3.2078]
[1739138721533,7.10179176,2545.2,2544.0,3.2078]
[1739138721735,0.24562682,2545.1,2544.0,3.2078]
[1739138722126,3.45342682,2545.0,2544.0,3.2078]
[1739138722325,3.45342682,2545.0,2544.3,0.00589217]
[1739138722326,0.00589217,2544.8,2544.3,0.00589217]
[1739138722730,4.30677526,2544.7,2544.3,0.00589217]
[1739138723033,0.00589217,2544.8,2544.6,3.2078]
[1739138723325,4.37001784,2544.7,2544.3,0.00589217]
[1739138723726,7.57781784,2544.7,2544.3,0.00589217]
[1739138723922,3.2078,2544.4,2543.7,3.2078]
[1739138724129,3.2078,2544.3,2543.4,3.2078]
[1739138724330,7.46673008,2544.3,2543.4,3.2078]
[1739138724521,7.46673008,2544.3,2543.1,3.2078]
[1739138724522,3.2078,2543.7,2543.1,3.2078]
[1739138724726,4.71412594,2544.1,2541.8,15.06581364]
[1739138724727,7.92192594,2543.2,2541.8,15.06581364]
[1739138724925,3.2078,2542.4,2541.8,3.2078]
[1739138725123,3.2078,2542.4,2541.1,0.78692]
[1739138725124,3.9943,2542.6,2541.2,3.2078]
[1739138725331,3.067,2542.7,2541.1,3.2078]
[1739138725332,7.46673008,2542.3,2541.1,3.2078]
[1739138725534,3.2078,2542.3,2541.1,3.2078]
[1739138725837,4.48562193,2542.2,2541.8,3.2078]
[1739138726331,0.05087859,2542.8,2542.1,3.2078]
[1739138726332,0.00589217,2542.8,2542.1,3.2078]
[1739138726636,0.00589217,2542.8,2542.7,3.2078]
[1739138726930,0.00589217,2542.8,2542.7,9.2078]
[1739138727134,0.04498642,2543.9,2542.7,9.2078]
[1739138727333,0.04498642,2543.9,2543.2,3.2078]
[1739138727524,4.55361952,2543.7,2543.2,3.2078]
[1739138727824,3.063,2544.7,2543.2,3.2078]
[1739138727825,0.04498642,2544.2,2543.2,3.2078]
[1739138728027,3.2078,2543.9,2542.7,3.2078]
[1739138728337,4.54423722,2543.6,2543.4,0.00589217]
[1739138728641,3.2078,2543.5,2543.4,0.00589217]
[1739138728827,7.75203722,2543.5,2543.4,0.00589217]
[1739138729028,3.49854348,2543.5,2542.7,3.2078]
[1739138729229,3.49854348,2543.5,2541.8,4.9386]
[1739138729230,7.91094408,2543.5,2542.3,3.2078]
[1739138729633,0.04498642,2543.3,2542.3,3.2078]
[1739138730127,7.29985937,2543.2,2542.3,3.2078]
[1739138730327,7.54561643,2543.2,2542.6,3.2078]
[1739138730736,7.54561643,2543.2,2542.5,0.00589217]
[1739138730737,0.24575706,2543.1,2543.0,3.2078]
[1739138730933,0.24575706,2543.1,2542.7,3.2078]
[1739138731233,0.24575706,2543.3,2542.7,3.2078]
[1739138731440,0.24575706,2543.3,2543.0,3.2078]
[1739138731633,0.24575706,2543.2,2543.0,3.2078]
[1739138731932,0.24575706,2543.6,2543.0,3.2078]
[1739138732137,4.113488,2543.8,2543.5,3.2078]
[1739138732337,0.00589217,2544.0,2543.5,3.2078]
[1739138732839,0.00589217,2544.0,2543.4,3.2078]
[1739138733043,0.00589217,2544.0,2543.8,3.2078]
[1739138733435,0.00589217,2544.0,2543.8,9.2078]
[1739138733637,0.04498642,2544.5,2544.0,0.78604]
[1739138733830,3.2078,2546.3,2544.4,3.2078]
[1739138734136,3.2078,2547.0,2545.8,3.2078]
[1739138734346,3.2078,2547.0,2546.3,3.2078]
[1739138734538,4.453192,2546.7,2546.5,3.2078]
[1739138734742,3.2078,2547.3,2546.3,3.2078]
[1739138734936,0.00589217,2546.9,2546.4,0.00589217]
[1739138735237,0.00589217,2546.9,2545.9,9.3344]
[1739138735238,3.2078,2546.5,2544.9,3.2078]
[1739138735429,3.2078,2545.9,2544.9,3.2078]
[1739138735634,3.2078,2545.5,2544.9,3.2078]
[1739138735842,3.2078,2545.5,2544.5,3.2078]
[1739138736036,3.2078,2544.8,2544.3,4.8691]
[1739138736242,3.2078,2545.1,2544.3,4.8691]
[1739138736437,4.14804038,2544.7,2544.3,0.00589217]
[1739138736935,0.00589217,2544.8,2544.3,0.00589217]
[1739138737142,3.91501113,2544.7,2544.3,0.00589217]
[1739138737342,0.00589217,2544.8,2544.6,3.2078]
[1739138737541,3.2078,2546.1,2544.6,3.2078]
[1739138737843,4.11083129,2546.0,2545.0,3.2078]
[1739138738236,4.11083129,2546.0,2544.3,0.79183217]
[1739138738237,3.2078,2545.5,2544.7,3.2078]
[1739138738443,3.2078,2545.4,2544.7,3.2078]
[1739138738639,3.2078,2545.1,2544.3,3.21369217]
[1739138738941,4.36129056,2545.0,2544.3,0.00589217]
[1739138739134,3.2078,2544.4,2544.3,0.00589217]
[1739138739339,3.2078,2544.4,2543.2,3.2078]
[1739138739535,3.2078,2543.8,2543.2,3.2078]
[1739138739740,0.0269693,2543.7,2543.5,3.2078]
[1739138739937,3.2078,2544.9,2543.6,0.78615]
[1739138740249,3.2078,2544.6,2543.6,3.2078]
[1739138740440,0.24569679,2544.5,2543.6,3.2078]
[1739138740633,0.24569679,2544.5,2543.3,4.5053]
[1739138740634,4.46254343,2544.5,2544.0,0.00589217]
[1739138740940,0.24569679,2544.4,2544.0,0.00589217]
[1739138741139,3.2078,2544.2,2544.0,0.00589217]
[1739138741334,0.24569679,2544.4,2544.0,0.00589217]
[1739138741335,4.30786412,2544.3,2544.0,0.00589217]
[1739138741542,0.78605,2544.0,2542.7,3.2078]
[1739138741742,3.2078,2543.6,2542.7,3.2078]
[1739138742141,4.06091729,2543.5,2542.3,3.2078]
[1739138742643,3.2078,2543.3,2542.3,3.2078]
[1739138742845,3.2078,2542.9,2542.0,5.7432]
[1739138743042,3.2078,2542.9,2541.9,3.2078]
[1739138743250,4.50912646,2542.8,2541.9,3.2078]
[1739138743637,0.24569679,2542.8,2541.9,3.2078]
[1739138743843,3.2078,2542.0,2541.4,3.2078]
[1739138744043,3.2078,2541.9,2541.3,4.5186]
[1739138744245,4.15796342,2541.9,2541.7,3.2078]
[1739138744447,0.24569679,2541.8,2541.3,7.7264]
[1739138744743,4.40366021,2541.7,2541.3,3.2078]
[1739138744939,4.40366021,2541.7,2540.4,5.6335]
[1739138744940,3.2078,2541.5,2540.8,3.2078]
[1739138745349,4.53556442,2541.4,2540.8,3.2078]
[1739138745948,0.24569679,2541.3,2541.1,3.2078]
[1739138746148,0.02687061,2541.7,2541.1,3.2078]
[1739138746647,0.02687061,2541.7,2541.4,3.2078]
[1739138746943,0.02687061,2541.9,2541.1,3.2078]
[1739138747146,4.25225185,2541.6,2540.6,3.2078]
[1739138747347,7.48692246,2541.8,2540.6,3.2078]
[1739138747547,4.25225185,2541.7,2540.6,3.2078]
[1739138747745,0.02687061,2541.8,2541.1,3.2078]
[1739138747949,0.02687061,2541.4,2541.1,0.78693]
[1739138748241,0.00589217,2542.1,2541.3,3.99467]
[1739138748441,0.00589217,2542.1,2541.8,3.2078]
[1739138749145,0.00589217,2542.1,2542.0,0.78666]
[1739138749354,3.2078,2543.6,2541.8,9.2078]
[1739138749547,3.2078,2542.8,2542.0,3.2078]
[1739138749741,3.2078,2542.7,2542.0,3.2078]
[1739138749948,3.2078,2542.1,2541.8,0.00589217]
[1739138750242,4.47531442,2542.0,2541.8,0.00589217]
[1739138751046,10.47531442,2542.0,2540.7,3.2078]
[1739138751248,7.68311442,2542.0,2540.7,3.2078]
[1739138751447,3.2078,2541.7,2540.7,3.2078]
[1739138751654,3.2078,2541.3,2540.7,3.2078]
[1739138751850,4.44166861,2541.6,2540.7,3.2078]
[1739138752047,4.12336126,2541.2,2540.7,3.2078]
[1739138752448,4.12336126,2541.2,2539.7,2.996]
[1739138752449,3.2078,2541.0,2540.0,3.2078]
[1739138752847,3.2078,2541.0,2539.7,7.00187487]
[1739138752848,4.12920156,2540.9,2539.7,3.2078]
[1739138753052,3.2078,2540.3,2539.7,3.2078]
[1739138753350,3.2078,2540.6,2539.7,3.2078]
[1739138753752,4.42988545,2540.5,2539.7,3.2078]
[1739138754148,4.42988545,2540.5,2539.6,4.5636]
[1739138754149,0.02675263,2540.1,2539.6,5.35099]
[1739138754354,0.24603146,2540.0,2539.7,3.2078]
[1739138754947,0.24603146,2539.9,2539.7,3.2078]
[1739138755356,0.24603146,2539.8,2539.7,3.2078]
[1739138756645,0.02675263,2540.3,2539.7,3.2078]
[1739138756951,4.37433533,2540.2,2539.7,3.2078]
[1739138757156,4.64714187,2540.2,2539.7,3.2078]
[1739138757350,4.64714187,2540.2,2539.4,3.2078]
[1739138757351,0.27280654,2540.2,2539.4,3.2078]
[1739138757652,3.23455263,2540.0,2538.8,3.2078]
[1739138757855,3.2078,2539.0,2538.1,3.2078]
[1739138758251,0.00590388,2538.8,2538.1,3.2078]
[1739138758451,0.00590388,2538.8,2538.7,3.2078]
[1739138758651,0.24605391,2538.9,2538.7,10.20967487]
[1739138758847,0.02675263,2539.4,2538.7,16.20967487]
[1739138759054,9.1619,2541.0,2539.5,0.78741]
[1739138759358,4.57220488,2540.6,2539.9,3.2078]
[1739138759558,4.57220488,2540.6,2539.6,3.2078]
[1739138759749,3.2078,2540.7,2539.6,3.2078]
[1739138759951,4.54055972,2540.6,2539.9,3.2078]
[1739138760160,0.00590388,2540.4,2540.3,3.2078]
[1739138760555,3.2078,2542.0,2540.3,9.2078]
[1739138760763,3.2078,2541.7,2540.6,4.73550026]
[1739138761053,4.15031046,2541.4,2540.6,4.73550026]
[1739138761247,3.2078,2541.1,2539.8,7.94330026]
[1739138761450,3.2078,2540.2,2539.4,7.94330026]
[1739138761654,3.2078,2539.9,2539.0,7.94330026]
[1739138761954,0.44069352,2539.8,2539.5,0.00590388]
[1739138762456,0.00590388,2540.1,2539.6,3.2078]
[1739138762654,0.00590388,2540.1,2539.5,0.00590388]
[1739138762851,4.44425142,2540.0,2539.5,0.00590388]
[1739138763051,0.00590388,2540.1,2539.5,0.00590388]
[1739138763260,0.00590388,2540.1,2539.9,3.2078]
[1739138763458,0.00590388,2540.1,2540.0,3.2078]
[1739138763756,3.2078,2541.2,2540.0,3.2078]
[1739138764054,4.34813495,2540.1,2539.5,0.00590388]
[1739138764366,3.2078,2539.7,2538.6,4.73550026]
[1739138764553,6.2098,2539.7,2538.8,3.2078]
[1739138764748,3.2078,2539.6,2539.0,3.2078]
[1739138764955,0.02654316,2539.7,2539.0,3.2078]
[1739138764956,0.00590388,2539.5,2539.3,3.2078]
[1739138765256,0.02654316,2539.7,2539.4,4.73550026]
[1739138765457,0.02654316,2540.2,2540.1,0.78725]
[1739138765653,0.02654316,2541.0,2540.1,7.94330026]
[1739138765853,0.02654316,2541.0,2540.8,3.2078]
[1739138766356,0.02654316,2541.4,2540.8,3.2078]
[1739138766552,0.00590388,2541.2,2540.8,3.2078]
[1739138766753,0.00590388,2541.2,2540.6,0.00590388]
[1739138766953,3.2078,2541.0,2540.6,0.00590388]
[1739138767153,0.24601515,2540.9,2540.6,0.00590388]
[1739138767456,0.02654316,2540.7,2540.6,0.00590388]
[1739138767759,4.6089307,2540.7,2539.7,4.73550026]
[1739138767959,3.2078,2540.5,2539.3,7.94330026]
[1739138768160,0.02654316,2540.2,2539.3,7.94330026]
[1739138768351,0.02654316,2539.9,2539.6,3.2078]
[1739138768858,0.24601515,2540.1,2539.8,0.78734]
[1739138769059,6.2078,2541.5,2540.0,3.2078]
[1739138769251,3.2078,2541.2,2540.3,3.2078]
[1739138769452,0.00590388,2540.2,2539.7,7.722]
[1739138770054,3.2078,2541.3,2540.1,3.2078]
[1739138770455,3.2078,2540.9,2540.1,3.2078]
[1739138770857,2.65832323,2540.8,2539.8,3.2078]
[1739138771065,3.2078,2540.3,2539.8,3.2078]
[1739138771263,3.21370388,2540.6,2540.0,3.2078]
[1739138771951,0.00590388,2540.6,2540.0,3.2078]
[1739138772356,4.43046226,2540.5,2539.7,3.2078]
[1739138773156,0.00590388,2540.6,2540.4,4.73550026]
[1739138773359,3.57692121,2541.8,2540.5,3.2078]
[1739138773662,4.52676965,2541.7,2540.8,3.2078]
[1739138773851,3.2078,2541.4,2540.5,3.2078]
[1739138774054,4.52676965,2541.7,2539.8,7.5868]
[1739138774055,3.2078,2540.8,2539.8,3.2078]
[1739138774263,3.2078,2540.3,2539.6,4.73550026]
[1739138774761,4.25101536,2540.2,2540.0,0.00590388]
[1739138774950,0.37502509,2540.6,2540.0,7.94920414]
[1739138775156,0.37502509,2540.6,2540.3,3.2078]
[1739138775356,0.00590388,2540.6,2540.3,3.2078]
[1739138775758,0.02694075,2540.4,2540.0,7.94920414]
[1739138775963,0.02694075,2540.4,2540.3,3.2078]
[1739138776162,0.02694075,2540.4,2540.0,7.94920414]
[1739138776359,7.73713138,2540.3,2540.0,0.00590388]
[1739138776560,3.2078,2540.3,2540.0,0.00590388]
[1739138776761,3.03290388,2540.6,2540.0,0.00590388]
[1739138777067,3.03290388,2540.6,2540.1,3.2078]
[1739138777068,4.52933138,2540.2,2540.1,3.2078]
[1739138777255,4.24316222,2540.3,2540.1,3.2078]
[1739138777559,0.24603584,2540.2,2540.0,0.00590388]
[1739138778164,0.2729807,2540.1,2540.0,0.00590388]
[1739138778463,4.43105511,2540.1,2540.0,0.00590388]
[1739138778668,0.24603584,2540.1,2540.0,0.00590388]
[1739138779665,0.24603584,2540.1,2540.0,3.21370388]
[1739138779962,0.00590388,2540.6,2540.0,13.94920414]
[1739138780167,0.00590388,2540.6,2540.4,3.2078]
[1739138780365,0.00590388,2540.6,2540.0,7.94920414]
[1739138780366,4.17704942,2540.5,2540.0,7.94920414]
[1739138780562,0.00590388,2540.6,2540.0,7.94920414]
[1739138780759,0.00590388,2540.6,2540.4,4.73550026]
[1739138781670,0.00590388,2540.6,2540.3,3.2078]
[1739138781868,0.00590388,2540.6,2540.4,4.73550026]
[1739138782368,0.00590388,2540.6,2540.4,10.73550026]
[1739138782669,0.03296094,2540.6,2540.4,11.52265026]
[1739138782866,0.02705706,2540.6,2540.5,0.78712]
[1739138783169,4.5464,2542.5,2540.5,0.78712]
[1739138783170,0.02707472,2541.0,2540.5,4.73550026]
[1739138783372,3.37691847,2542.4,2540.5,4.73550026]
[1739138783373,0.36891847,2542.4,2541.3,0.78684]
[1739138783557,4.52053468,2542.3,2541.8,3.2078]
[1739138783763,0.36891847,2542.4,2542.1,3.2078]
[1739138783963,7.7542,2543.3,2542.1,3.2078]
[1739138783964,4.5464,2543.3,2542.1,3.2078]
[1739138784157,4.5464,2543.3,2541.9,7.94330026]
[1739138784158,3.2078,2543.0,2541.9,7.94330026]
[1739138784363,0.00389691,2542.5,2542.0,0.00590388]
[1739138784768,4.254579,2542.4,2542.0,0.00590388]
[1739138784967,0.00389691,2542.5,2542.1,3.2078]
[1739138785267,4.14287589,2542.4,2542.1,3.2078]
[1739138785469,4.14287589,2542.4,2542.3,4.73550026]
[1739138785665,0.00389691,2542.5,2542.3,4.73550026]
[1739138785859,0.00389691,2542.5,2542.4,3.2078]
[1739138786059,0.36874343,2543.6,2542.4,3.99433]
[1739138786259,5.9152,2543.7,2542.5,3.2078]
[1739138786463,3.2078,2543.2,2542.5,3.2078]
[1739138786663,4.26768498,2543.6,2542.5,3.2078]
[1739138786890,9.123,2543.7,2542.5,3.2078]
[1739138787066,9.123,2543.7,2542.8,3.2078]
[1739138787368,4.41349101,2543.6,2542.8,3.2078]
[1739138787762,4.41349101,2543.6,2543.1,3.2078]
[1739138788072,0.24576506,2543.5,2543.1,3.2078]
[1739138788273,0.24576506,2543.5,2543.4,3.2078]
[1739138788570,3.2078,2545.0,2543.8,0.78607]
[1739138788868,0.02701272,2544.3,2544.2,3.2078]
[1739138789270,0.02701272,2544.3,2544.2,9.2078]
[1739138789465,0.02701272,2544.9,2544.2,9.2078]
[1739138789667,0.02701272,2544.9,2544.8,3.2078]
[1739138789867,0.02701272,2545.4,2544.8,9.2078]
[1739138790064,0.02701272,2545.7,2545.2,3.2078]
[1739138790262,0.02701272,2545.7,2545.5,3.2078]
[1739138790564,0.02701272,2545.9,2545.6,5.90449353]
[1739138790763,3.2078,2547.4,2545.8,7.94330026]
[1739138790959,3.2078,2547.1,2546.3,4.73550026]
[1739138791169,3.2078,2547.1,2545.9,7.94330026]
[1739138791369,3.2078,2547.1,2546.3,0.00589136]
[1739138791565,3.2078,2546.8,2546.3,0.00589136]
[1739138791964,7.41530195,2547.2,2546.3,0.00589136]
[1739138792265,5.9681,2547.9,2547.1,3.2078]
[1739138792465,3.2078,2548.1,2547.4,3.2078]
[1739138792671,3.2078,2548.6,2547.7,3.2078]
[1739138792861,3.2078,2548.6,2547.5,4.73550026]
[1739138793058,4.17202824,2548.2,2547.6,3.2078]
[1739138793262,3.2078,2548.3,2547.7,0.00589136]
[1739138793671,4.17202824,2548.1,2547.7,0.00589136]
[1739138793873,7.37982824,2548.1,2547.7,0.00589136]
[1739138794064,3.2078,2548.1,2547.7,0.00589136]
[1739138794269,4.29134784,2548.2,2547.7,0.00589136]
[1739138794566,3.2078,2548.8,2547.7,3.21369136]
[1739138794759,5.6537,2549.0,2547.8,3.2078]
[1739138795165,5.6537,2549.0,2548.4,3.2078]
[1739138795569,2.996,2549.5,2548.4,3.2078]
[1739138795866,6.2038,2549.5,2548.3,4.73550026]
[1739138796066,6.2038,2549.5,2547.8,3.2078]
[1739138796067,19.50053061,2548.5,2547.8,3.2078]
[1739138796274,19.50053061,2548.5,2547.7,3.21369136]
[1739138796474,0.02674966,2548.4,2547.7,3.21369136]
[1739138796773,0.27208245,2548.3,2548.2,3.2078]
[1739138796974,4.44823831,2548.3,2547.9,3.2078]
[1739138797169,0.24533279,2548.3,2547.7,0.00589136]
[1739138797369,4.40927096,2548.2,2547.7,0.00589136]
[1739138797676,4.40927096,2548.2,2546.8,18.712]
[1739138797677,3.2078,2548.1,2546.9,3.2078]
[1739138797966,0.02674966,2547.9,2547.8,3.2078]
[1739138798567,0.02674966,2548.3,2547.8,3.2078]
[1739138798869,0.00584962,2548.1,2547.8,3.2078]
[1739138799064,0.00584962,2548.1,2547.9,4.73550026]
[1739138799273,0.2453195,2548.0,2547.9,4.73550026]
[1739138799571,0.00584962,2548.1,2547.9,4.73550026]
[1739138799969,0.02674966,2548.4,2548.3,0.78471]
[1739138800169,8.9868,2550.4,2548.5,3.2078]
[1739138800367,8.9868,2550.4,2549.5,3.2078]
[1739138800562,8.9868,2550.4,2548.0,10.4006]
[1739138800563,7.54423671,2550.0,2548.5,7.94330026]
[1739138800768,3.2078,2549.4,2548.5,7.94330026]
[1739138800966,3.2078,2549.8,2549.0,3.2078]
[1739138801270,3.016,2549.9,2548.1,0.78476]
[1739138801271,3.2078,2549.1,2548.7,0.00589136]
[1739138801472,3.2078,2548.9,2548.7,0.00589136]
[1739138801667,3.2078,2548.9,2548.2,3.2078]
[1739138801979,0.8842005,2548.8,2547.7,4.73550026]
[1739138802270,0.8842005,2548.8,2547.6,3.2078]
[1739138802271,3.2078,2548.3,2547.6,3.2078]
[1739138802467,5.0602305,2548.8,2547.9,3.2078]
[1739138802663,4.9606,2548.8,2547.9,3.2078]
[1739138802865,3.2078,2548.6,2548.1,0.00589136]
[1739138803068,4.18403077,2548.7,2547.3,3.2078]
[1739138803369,3.2078,2547.7,2547.1,3.2078]
[1739138803771,4.22789854,2547.6,2547.1,3.2078]
[1739138804067,3.2078,2547.4,2546.5,3.2078]
[1739138804269,9.1943899,2547.6,2546.5,3.2078]
[1739138804577,3.2078,2547.2,2546.7,0.00589136]
[1739138804870,4.13334742,2547.1,2546.7,0.00589136]
[1739138805172,3.2078,2546.9,2546.7,0.00589136]
[1739138805469,3.2078,2547.0,2545.9,3.2078]
[1739138805672,10.53966589,2546.8,2545.9,3.2078]
[1739138805869,3.2078,2546.6,2545.9,3.2078]
[1739138806067,6.1477,2546.8,2545.3,9.49590026]
[1739138806068,4.23052145,2546.7,2546.2,3.2078]
[1739138806263,4.23052145,2546.5,2546.2,3.2078]
[1739138806471,9.3555,2546.8,2545.9,3.2078]
[1739138806672,4.23641281,2546.6,2546.1,0.00589136]
[1739138806870,0.00589136,2546.6,2546.5,3.2078]
[1739138807073,3.2078,2547.8,2546.5,3.2078]
[1739138807074,0.02650726,2547.8,2546.5,10.94430026]
[1739138807269,0.02650726,2547.8,2547.7,3.2078]
[1739138807762,18.695,2549.7,2547.7,3.2078]
[1739138807763,0.02650726,2549.0,2547.7,9.2078]
[1739138807968,0.02650726,2549.0,2548.6,3.2078]
[1739138808171,4.52569953,2549.2,2548.9,3.2078]
[1739138808376,0.00589136,2549.1,2548.9,3.2078]
[1739138810376,0.00589136,2549.1,2548.9,9.2078]
[1739138810678,0.00589136,2549.1,2549.0,5.20877005]
[1739138810879,0.00589136,2549.1,2548.9,12.1848]
[1739138811375,0.00589136,2549.1,2548.9,3.2078]
[1739138812373,0.00589136,2549.1,2548.5,0.00589136]
[1739138812374,7.4391577,2549.0,2548.5,0.00589136]
[1739138812569,3.2078,2548.9,2548.5,0.00589136]
[1739138812772,3.2078,2548.9,2548.0,4.73550026]
[1739138812773,3.2078,2548.7,2548.0,3.2078]
[1739138813072,0.7847,2548.4,2547.2,3.2078]
[1739138813370,3.2078,2547.7,2546.9,3.2078]
[1739138813779,4.2313577,2547.6,2547.2,3.2078]
[1739138813965,3.23430726,2548.1,2547.2,3.2078]
[1739138814172,0.00589136,2547.6,2547.2,3.2078]
[1739138814370,0.00589136,2547.6,2547.5,3.2078]
[1739138814770,9.0929,2548.9,2547.5,3.2078]
[1739138814771,0.02650726,2548.3,2547.5,9.2078]
[1739138814974,0.02650726,2548.3,2548.2,3.2078]
[1739138815477,0.27175242,2548.8,2548.2,3.2078]
[1739138815771,0.27175242,2548.8,2548.6,3.2078]
[1739138815972,0.24524516,2548.8,2548.6,3.2078]
[1739138816171,0.25113652,2548.8,2548.6,3.2078]
[1739138816476,0.24524516,2548.7,2548.2,0.00589136]
[1739138816672,0.27175242,2548.6,2548.2,0.00589136]
[1739138817180,7.68547791,2548.5,2548.2,0.00589136]
[1739138817383,0.24524516,2548.4,2548.2,0.00589136]
[1739138817869,4.47767791,2548.3,2547.2,3.2078]
[1739138818065,3.2078,2548.0,2547.2,3.2078]
[1739138818274,10.48472307,2548.3,2547.5,3.2078]
[1739138818481,4.1435581,2547.9,2547.5,3.2078]
[1739138818774,7.96456987,2548.2,2547.5,3.2078]